bitfinex/quotes_BTCUSD_20250617
["timestamp","ask_amount","ask_price","bid_price","bid_amount"]
[1750187563496,0.22907163,104770.0,104760.0,0.60314563]
[1750187563710,0.21952756,104770.0,104760.0,0.61269089]
[1750187563928,0.20043895,104770.0,104760.0,0.06478028]
[1750187564149,0.19089433,104770.0,104760.0,0.06878028]
[1750187564364,0.35589433,104770.0,104760.0,0.06878028]
[1750187564796,0.35589433,104770.0,104760.0,0.07178028]
[1750187565663,0.35589433,104770.0,104760.0,0.26269284]
[1750187565876,0.35589433,104770.0,104760.0,0.07178028]
[1750187569414,0.19089433,104770.0,104760.0,0.07178028]
[1750187569627,0.35581433,104770.0,104760.0,0.07178028]
[1750187570283,0.69530812,104780.0,104770.0,0.0436]
[1750187570501,0.95646988,104780.0,104770.0,0.0436]
[1750187570760,0.45154988,104780.0,104770.0,0.23449433]
[1750187570976,0.45154988,104780.0,104770.0,0.0436]
[1750187570977,0.61646988,104780.0,104770.0,0.0436]
[1750187571191,0.95646988,104780.0,104770.0,0.0436]
[1750187571626,0.97101073,104780.0,104770.0,0.0436]
[1750187571844,0.20043886,104770.0,104760.0,0.0506]
[1750187572101,0.29668062,104770.0,104760.0,0.0506]
[1750187572320,0.63668062,104770.0,104760.0,0.007]
[1750187572534,0.63668062,104770.0,104760.0,0.0477]
[1750187572749,0.63668062,104770.0,104760.0,0.0437]
[1750187573616,0.63668062,104770.0,104760.0,0.0477]
[1750187574458,0.66535762,104770.0,104760.0,0.0517]
[1750187582697,1.24014277,104770.0,104760.0,0.008]
[1750187582912,1.25744277,104770.0,104760.0,0.008]
[1750187583340,1.27264277,104770.0,104760.0,0.008]
[1750187583559,0.82989847,104770.0,104760.0,0.004]
[1750187583795,0.55000335,104760.0,104750.0,0.0209]
[1750187584020,0.81104511,104760.0,104750.0,0.0209]
[1750187584442,0.81104511,104760.0,104750.0,0.043]
[1750187585095,0.69200511,104760.0,104750.0,0.27069095]
[1750187585322,0.81100511,104760.0,104750.0,0.26556992]
[1750187585543,0.81100511,104760.0,104750.0,0.28798758]
[1750187585766,0.81100511,104760.0,104750.0,0.06841748]
[1750187585767,0.80145976,104760.0,104750.0,0.06841748]
[1750187585979,0.80145976,104760.0,104750.0,0.25934826]
[1750187586210,0.79191432,104760.0,104750.0,0.06841748]
[1750187586451,0.79191432,104760.0,104750.0,0.24647722]
[1750187586666,0.79191432,104760.0,104750.0,0.26890182]
[1750187586883,0.79191432,104760.0,104750.0,0.58759308]
[1750187587074,0.79191432,104760.0,104750.0,0.58959308]
[1750187587506,0.79191432,104760.0,104750.0,0.59913961]
[1750187587725,0.09624176,104760.0,104750.0,0.62777794]
[1750187587959,0.21957331,104770.0,104760.0,0.26484825]
[1750187587960,0.05731023,104770.0,104760.0,0.26484825]
[1750187588182,0.52829483,104770.0,104760.0,0.61551055]
[1750187588405,0.36353556,104770.0,104760.0,0.58687486]
[1750187588620,0.49966242,104770.0,104760.0,0.0677246]
[1750187588873,0.49966242,104770.0,104760.0,0.59642048]
[1750187589103,0.33467345,104770.0,104760.0,0.61551127]
[1750187589324,0.14377876,104770.0,104760.0,0.62505644]
[1750187589542,0.49943309,104770.0,104760.0,0.70996336]
[1750187589761,0.5089778,104770.0,104760.0,0.70996336]
[1750187589981,0.50893716,104770.0,104760.0,0.62705644]
[1750187590470,0.50893716,104770.0,104760.0,0.61751127]
[1750187591300,0.50893716,104770.0,104760.0,0.62705644]
[1750187591995,0.50893716,104770.0,104760.0,0.63660152]
[1750187591996,0.12468979,104770.0,104760.0,0.63660152]
[1750187592265,0.44908623,104780.0,104770.0,0.26322719]
[1750187592472,0.118671,104780.0,104770.0,0.62343366]
[1750187592706,0.09,104780.0,104770.0,0.65151501]
[1750187593118,0.09,104780.0,104770.0,0.85365072]
[1750187593607,0.09,104780.0,104770.0,0.82756937]
[1750187593845,0.09,104780.0,104770.0,0.86512136]
[1750187594558,0.11862958,104780.0,104770.0,0.86512136]
[1750187594774,0.11862967,104780.0,104770.0,0.69289719]
[1750187595000,0.10908623,104780.0,104770.0,0.85757719]
[1750187595243,0.1281732,104780.0,104770.0,0.82012148]
[1750187595495,0.31904996,104780.0,104770.0,0.63633843]
[1750187595708,0.11863013,104780.0,104770.0,0.81056278]
[1750187595931,0.11863013,104780.0,104770.0,0.79211402]
[1750187596152,0.11863013,104780.0,104770.0,0.82010685]
[1750187596613,0.10908651,104780.0,104770.0,0.79211402]
[1750187596861,0.12817366,104780.0,104770.0,0.80163266]
[1750187597079,0.09954316,104780.0,104770.0,0.80163266]
[1750187597299,0.10908641,104780.0,104770.0,0.82962549]
[1750187597527,0.3190495,104780.0,104770.0,0.65540142]
[1750187597794,0.3190495,104780.0,104770.0,0.64649702]
[1750187598021,0.11862976,104780.0,104770.0,0.64649656]
[1750187598261,0.13771691,104780.0,104770.0,0.64649656]
[1750187598770,0.12817329,104780.0,104770.0,0.64649656]
[1750187599268,0.11862976,104780.0,104770.0,0.64649656]
[1750187599479,0.1281732,104780.0,104770.0,0.64649656]
[1750187599700,0.13771682,104780.0,104770.0,0.64649656]
[1750187601769,0.12817366,104780.0,104770.0,0.64649656]
[1750187601989,0.30950653,104780.0,104770.0,0.60834542]
[1750187602216,0.30950653,104780.0,104770.0,0.61789022]
[1750187602437,0.29996318,104780.0,104770.0,0.61789031]
[1750187602651,0.29996318,104780.0,104770.0,0.62743466]
[1750187603090,0.29996318,104780.0,104770.0,0.63697892]
[1750187603782,0.09,104780.0,104770.0,0.74297766]
[1750187604311,0.09954316,104780.0,104770.0,0.74297766]
[1750187604333,0.09954307,104780.0,104770.0,0.77097049]
[1750187604573,0.09954307,104780.0,104770.0,0.74297766]
[1750187605192,0.09954298,104780.0,104770.0,0.74297766]
[1750187605402,0.09,104780.0,104770.0,0.74297766]
[1750187605606,0.09,104780.0,104770.0,0.77097049]
[1750187609363,0.09,104780.0,104770.0,0.44273279]
[1750187609568,0.09,104780.0,104770.0,0.34658357]
[1750187609781,0.09,104780.0,104770.0,0.67482127]
[1750187609980,0.09,104780.0,104770.0,0.71227698]
[1750187610862,0.09,104780.0,104770.0,0.38403928]
[1750187611066,0.09,104780.0,104770.0,0.83930127]
[1750187611289,0.09,104780.0,104770.0,0.67482127]
[1750187611502,0.09,104780.0,104770.0,0.83930127]
[1750187611714,0.09954307,104780.0,104770.0,0.83930127]
[1750187611921,0.09,104780.0,104770.0,0.83930127]
[1750187612155,0.09954298,104780.0,104770.0,0.67482127]
[1750187612351,0.09,104780.0,104770.0,0.83930127]
[1750187612775,0.09,104780.0,104770.0,0.93545049]
[1750187613043,0.1281732,104780.0,104770.0,0.67482127]
[1750187613251,0.1281732,104780.0,104770.0,0.81126844]
[1750187613467,0.13771691,104780.0,104770.0,0.81126844]
[1750187613684,0.31905005,104780.0,104770.0,0.65573294]
[1750187613904,0.31905005,104780.0,104770.0,0.79187412]
[1750187614561,0.1090866,104780.0,104770.0,0.82941102]
[1750187614773,0.11863022,104780.0,104770.0,0.82941102]
[1750187614999,0.1186294,104780.0,104770.0,0.8763677]
[1750187615222,0.09954298,104780.0,104770.0,0.8763677]
[1750187615460,0.10908614,104780.0,104770.0,0.8763677]
[1750187615672,0.11862949,104780.0,104770.0,0.88623887]
[1750187615877,0.10908614,104780.0,104770.0,0.88623887]
[1750187616100,0.09954298,104780.0,104770.0,0.88623887]
[1750187616310,0.10908614,104780.0,104770.0,0.92369458]
[1750187616527,0.11862976,104780.0,104770.0,0.51104449]
[1750187616740,0.11862967,104780.0,104770.0,0.83928219]
[1750187616986,0.11862958,104780.0,104770.0,0.83928219]
[1750187617207,0.09954298,104780.0,104770.0,0.67484219]
[1750187617432,0.09954298,104780.0,104770.0,0.8767379]
[1750187617628,0.09,104780.0,104770.0,0.94489429]
[1750187619297,0.09,104780.0,104770.0,0.90492864]
[1750187620034,0.09,104780.0,104770.0,0.89538457]
[1750187620248,0.09,104780.0,104770.0,0.8858404]
[1750187620489,0.09,104780.0,104770.0,0.89538466]
[1750187620865,0.09,104780.0,104770.0,0.87629605]
[1750187621218,0.30950634,104780.0,104770.0,0.85720708]
[1750187621424,0.30950634,104780.0,104770.0,0.86675179]
[1750187621635,0.30950634,104780.0,104770.0,0.62885704]
[1750187621845,0.30950634,104780.0,104770.0,0.66626114]
[1750187622091,0.29996318,104780.0,104770.0,0.66626114]
[1750187622317,0.09954316,104780.0,104770.0,0.86662009]
[1750187622540,0.10908641,104780.0,104770.0,0.90977148]
[1750187622757,0.30950606,104780.0,104770.0,0.92886009]
[1750187622972,0.30950606,104780.0,104770.0,0.90977148]
[1750187623188,0.11862994,104780.0,104770.0,0.90977148]
[1750187623398,0.30950606,104780.0,104770.0,0.88191164]
[1750187623620,0.10908641,104780.0,104770.0,0.89145571]
[1750187623825,0.11862985,104780.0,104770.0,0.89145571]
[1750187624031,0.12817347,104780.0,104770.0,0.89145581]
[1750187624238,0.12817347,104780.0,104770.0,0.92886039]
[1750187624455,0.31905014,104780.0,104770.0,0.91931622]
[1750187624675,0.12817402,104780.0,104770.0,0.92886029]
[1750187624889,0.32859394,104780.0,104770.0,0.91927622]
[1750187625113,0.11863031,104780.0,104770.0,0.90475742]
[1750187625321,0.10908669,104780.0,104770.0,0.90475742]
[1750187625739,0.10908623,104780.0,104770.0,0.90475742]
[1750187626171,0.11862967,104780.0,104770.0,0.90475742]
[1750187626381,0.09954298,104780.0,104770.0,0.90475742]
[1750187627010,0.09954298,104780.0,104770.0,0.86735284]
[1750187627011,0.09954307,104780.0,104770.0,0.86735284]
[1750187627539,0.09,104780.0,104770.0,1.61250992]
[1750187627754,0.20366147,104830.0,104810.0,0.04992221]
[1750187627980,0.19086147,104830.0,104820.0,0.51904098]
[1750187628208,0.02861629,104830.0,104820.0,0.60314545]
[1750187628434,0.03815591,104830.0,104820.0,0.61268515]
[1750187628661,0.01907695,104830.0,104820.0,1.05306169]
[1750187628881,0.22893989,104830.0,104820.0,0.34947593]
[1750187629113,0.23847914,104830.0,104820.0,0.28444763]
[1750187629342,0.22894071,104830.0,104820.0,0.26536786]
[1750187629606,0.21940219,104830.0,104820.0,0.26536795]
[1750187629832,0.2098634,104830.0,104820.0,0.0650246]
[1750187630058,0.2098634,104830.0,104820.0,0.22276804]
[1750187630282,0.2108634,104830.0,104820.0,0.23230811]
[1750187630499,0.2108634,104830.0,104820.0,0.0224246]
[1750187630929,0.2108634,104830.0,104820.0,0.3506623]
[1750187631168,0.2098634,104830.0,104820.0,0.3506623]
[1750187631430,0.2098634,104830.0,104820.0,0.38116736]
[1750187631640,0.2098634,104830.0,104820.0,0.42326736]
[1750187631864,0.20986294,104830.0,104820.0,0.63215087]
[1750187632104,0.21940219,104830.0,104820.0,0.64369085]
[1750187632335,0.02861629,104830.0,104820.0,0.99100787]
[1750187632761,0.03815545,104830.0,104820.0,0.65323065]
[1750187632974,0.22894053,104830.0,104820.0,0.75891957]
[1750187633192,0.03815545,104830.0,104820.0,0.76852025]
[1750187633411,0.03815545,104830.0,104820.0,0.67237103]
[1750187633622,0.0476947,104830.0,104820.0,0.67237103]
[1750187634056,0.02861629,104830.0,104820.0,0.67237103]
[1750187634265,0.01907731,104830.0,104820.0,0.67237103]
[1750187634474,0.03815545,104830.0,104820.0,0.75898073]
[1750187634691,0.03815545,104830.0,104820.0,0.43386914]
[1750187634692,0.21940247,104830.0,104820.0,0.43386914]
[1750187634934,0.20986349,104830.0,104820.0,0.58874736]
[1750187635151,0.20986349,104830.0,104820.0,0.26050966]
[1750187635360,0.20486349,104830.0,104820.0,0.26050966]
[1750187635571,0.20486349,104830.0,104820.0,0.58874736]
[1750187636655,0.20486349,104830.0,104820.0,0.59845727]
[1750187636859,0.20486349,104830.0,104820.0,0.58874736]
[1750187637792,0.20486349,104830.0,104820.0,0.40184276]
[1750187638462,0.20486349,104830.0,104820.0,0.42416812]
[1750187638678,0.20486349,104830.0,104820.0,0.40184276]
[1750187638917,0.20486349,104830.0,104820.0,0.42416578]
[1750187639176,0.20486313,104830.0,104820.0,0.46223696]
[1750187639385,0.01407805,104830.0,104820.0,0.39485719]
[1750187639600,0.02861657,104830.0,104820.0,0.41408233]
[1750187639827,0.02861657,104830.0,104820.0,0.33457587]
[1750187640034,0.0190775,104830.0,104820.0,0.66281357]
[1750187640253,0.00953861,104830.0,104820.0,0.66281357]
[1750187640483,0.37579911,104840.0,104830.0,0.25086331]
[1750187640706,0.20995911,104840.0,104830.0,0.57910101]
[1750187640922,0.20032415,104830.0,104820.0,0.27284841]
[1750187641153,0.20032415,104830.0,104820.0,0.63294322]
[1750187641364,0.20032415,104830.0,104820.0,0.29516554]
[1750187641584,0.20032415,104830.0,104820.0,0.62140324]
[1750187641799,0.20032415,104830.0,104820.0,0.30170552]
[1750187642242,0.20032415,104830.0,104820.0,0.27938839]
[1750187642666,0.20032415,104830.0,104820.0,0.29216587]
[1750187642936,0.20032415,104830.0,104820.0,0.30170576]
[1750187643367,0.18515805,104830.0,104820.0,0.32078507]
[1750187643589,0.19469721,104830.0,104820.0,0.65856229]
[1750187643833,0.39502154,104830.0,104820.0,0.64902277]
[1750187644084,0.0095387,104830.0,104820.0,0.64048316]
[1750187644322,0.04769415,104830.0,104820.0,0.65202268]
[1750187644552,0.40443932,104830.0,104820.0,0.64248316]
[1750187644770,0.38536219,104830.0,104820.0,0.30470576]
[1750187645003,0.21940219,104830.0,104820.0,0.30470585]
[1750187645220,0.21940219,104830.0,104820.0,0.09482252]
[1750187645221,0.2098634,104830.0,104820.0,0.09482252]
[1750187645462,0.36636433,104830.0,104820.0,0.09482252]
[1750187645693,0.36636433,104830.0,104820.0,0.03150506]
[1750187646371,0.20032433,104830.0,104820.0,0.03150506]
[1750187646607,0.36636433,104830.0,104820.0,0.2318485]
[1750187646829,0.36636433,104830.0,104820.0,0.03150506]
[1750187647275,0.36620433,104830.0,104820.0,0.24390834]
[1750187647498,0.46244609,104830.0,104820.0,0.03150506]
[1750187649075,0.46236609,104830.0,104820.0,0.03150506]
[1750187649953,0.46228609,104830.0,104820.0,0.23184841]
[1750187650206,0.46228609,104830.0,104820.0,0.2839883]
[1750187650421,0.46228609,104830.0,104820.0,0.30632292]
[1750187650861,0.29656609,104830.0,104820.0,0.63456062]
[1750187651075,0.46224609,104830.0,104820.0,0.63456062]
[1750187651290,0.46224609,104830.0,104820.0,0.60268611]
[1750187651514,0.46224609,104830.0,104820.0,0.63456801]
[1750187651727,0.46224609,104830.0,104820.0,0.3063304]
[1750187651939,0.46224609,104830.0,104820.0,0.6345681]
[1750187652150,0.48132359,104830.0,104820.0,0.29679042]
[1750187652366,0.48124359,104830.0,104820.0,0.62502821]
[1750187652584,0.2195417,104840.0,104830.0,0.20032433]
[1750187652865,0.57687327,104850.0,104840.0,0.19076688]
[1750187653082,0.65564903,104850.0,104840.0,0.56891933]
[1750187653313,0.86728903,104850.0,104840.0,0.58961924]
[1750187653534,0.46489576,104850.0,104840.0,0.26138154]
[1750187653748,0.86728164,104850.0,104840.0,0.26138163]
[1750187653973,0.86728228,104850.0,104840.0,0.25184347]
[1750187654221,0.45531617,104850.0,104840.0,0.25184347]
[1750187654454,0.85770485,104850.0,104840.0,0.26138163]
[1750187654679,0.66683617,104850.0,104840.0,0.26138163]
[1750187654892,0.65560228,104850.0,104840.0,0.26138163]
[1750187655107,0.87669077,104850.0,104840.0,0.23276688]
[1750187655359,0.66517077,104850.0,104840.0,0.24230522]
[1750187655584,0.85754521,104850.0,104840.0,0.21146688]
[1750187655804,0.85754521,104850.0,104840.0,0.19176688]
[1750187656024,0.64606521,104850.0,104840.0,0.19176688]
[1750187656243,0.86046521,104850.0,104840.0,0.19176688]
[1750187656463,0.85746521,104850.0,104840.0,0.19176688]
[1750187656721,0.85946521,104850.0,104840.0,0.21415983]
[1750187656933,0.64806521,104850.0,104840.0,0.21415983]
[1750187657163,0.85946521,104850.0,104840.0,0.21415983]
[1750187657623,0.002,104850.0,104840.0,0.61171146]
[1750187657850,0.002,104850.0,104840.0,0.63962507]
[1750187658287,0.16712,104850.0,104840.0,0.35864947]
[1750187658514,0.16712,104850.0,104840.0,0.63962507]
[1750187658728,0.16712,104850.0,104840.0,0.63862507]
[1750187658948,0.002,104850.0,104840.0,0.77319372]
[1750187659195,0.36860792,104860.0,104850.0,0.26195988]
[1750187659411,0.52411176,104860.0,104850.0,0.28435283]
[1750187659633,0.53364792,104860.0,104850.0,0.61259053]
[1750187659852,0.52411176,104860.0,104850.0,0.61259053]
[1750187660078,0.53364792,104860.0,104850.0,0.28435283]
[1750187660541,0.20318426,104860.0,104850.0,0.28435283]
[1750187660795,0.11948052,104880.0,104860.0,0.0412]
[1750187661051,0.01565307,104890.0,104880.0,0.26049713]
[1750187661282,0.01565307,104890.0,104880.0,0.34806438]
[1750187661516,0.04425309,104890.0,104880.0,0.29175352]
[1750187661739,0.03471948,104890.0,104880.0,0.30128813]
[1750187661962,0.23492903,104890.0,104880.0,0.27335629]
[1750187662192,0.23492903,104890.0,104880.0,0.28289072]
[1750187662423,0.05378679,104890.0,104880.0,0.29242488]
[1750187662642,0.05378679,104890.0,104880.0,0.29442497]
[1750187662859,0.044253,104890.0,104880.0,0.30395903]
[1750187663103,0.044253,104890.0,104880.0,0.38808971]
[1750187663104,0.02518614,104890.0,104880.0,0.38808971]
[1750187663335,0.20933291,104890.0,104880.0,0.38808971]
[1750187663568,0.21886652,104890.0,104880.0,0.38808971]
[1750187663791,0.20933291,104890.0,104880.0,0.38808971]
[1750187664010,0.19026614,104890.0,104880.0,0.39008971]
[1750187664243,0.03471948,104890.0,104880.0,0.30595913]
[1750187664508,0.40942255,104890.0,104880.0,0.26449768]
[1750187664742,0.39988948,104890.0,104880.0,0.26449777]
[1750187665404,0.39988948,104890.0,104880.0,0.25496334]
[1750187665856,0.39988948,104890.0,104880.0,0.28402295]
[1750187666082,0.39988948,104890.0,104880.0,0.30309172]
[1750187666287,0.39035614,104890.0,104880.0,0.29355738]
[1750187666511,0.39035614,104890.0,104880.0,0.30309172]
[1750187666734,0.1996802,104890.0,104880.0,0.40293455]
[1750187666974,0.01565307,104890.0,104880.0,1.55955385]
[1750187667204,0.01565307,104890.0,104880.0,1.60972637]
[1750187667444,0.01565307,104890.0,104880.0,1.20043729]
[1750187667666,0.01565307,104890.0,104880.0,1.20025982]
[1750187667880,0.01565307,104890.0,104880.0,1.19625982]
[1750187668385,0.01565307,104890.0,104880.0,1.19925982]
[1750187668615,0.01565307,104890.0,104880.0,0.79397074]
[1750187668843,0.01565307,104890.0,104880.0,1.54025982]
[1750187669073,0.01565307,104890.0,104880.0,1.9495489]
[1750187669520,0.01565307,104890.0,104880.0,1.96408975]
[1750187669740,0.00611406,104890.0,104880.0,1.97355718]
[1750187669992,0.00611406,104890.0,104880.0,1.98319878]
[1750187670195,0.00313039,104900.0,104890.0,0.26157623]
[1750187670417,0.00313039,104900.0,104890.0,0.88547631]
[1750187670657,0.00313039,104900.0,104890.0,1.05079631]
[1750187670892,0.00313039,104900.0,104890.0,0.88547631]
[1750187671115,0.00313039,104900.0,104890.0,1.05083631]
[1750187671343,0.00313039,104900.0,104890.0,1.07857296]
[1750187671562,0.00613039,104900.0,104890.0,1.05083631]
[1750187672016,0.00060069,104920.0,104910.0,0.21923442]
[1750187672239,0.01966146,104920.0,104910.0,0.42677442]
[1750187672462,0.01966146,104920.0,104910.0,0.46966847]
[1750187672698,0.01966146,104920.0,104910.0,0.42677442]
[1750187672928,0.01966146,104920.0,104910.0,0.8360635]
[1750187673156,0.02919216,104920.0,104910.0,0.8360635]
[1750187673400,0.01013094,104920.0,104910.0,0.52292364]
[1750187673627,0.01013094,104920.0,104910.0,0.93321272]
[1750187673869,0.00060069,104920.0,104910.0,0.93321272]
[1750187674330,0.00060069,104920.0,104910.0,0.93521272]
[1750187674809,0.01013094,104920.0,104910.0,0.76997272]
[1750187675042,0.00060069,104920.0,104910.0,0.93613272]
[1750187676180,0.00060069,104920.0,104910.0,0.95826112]
[1750187676410,0.00060069,104920.0,104910.0,0.95726112]
[1750187676836,0.00060069,104920.0,104910.0,0.94113272]
[1750187677057,0.00060069,104920.0,104910.0,0.96125898]
[1750187677290,0.20983823,104940.0,104910.0,1.85511437]
[1750187677291,6e-05,104940.0,104910.0,1.85511437]
[1750187677502,6e-05,104940.0,104930.0,0.70540109]
[1750187677715,6e-05,104940.0,104930.0,0.94697484]
[1750187677942,6e-05,104940.0,104930.0,0.53768576]
[1750187678165,6e-05,104940.0,104930.0,0.46076638]
[1750187678389,6e-05,104940.0,104930.0,0.87005546]
[1750187678660,6e-05,104940.0,104930.0,0.95558973]
[1750187679332,6e-05,104940.0,104930.0,1.29550973]
[1750187679556,6e-05,104940.0,104930.0,1.29598973]
[1750187679788,6e-05,104940.0,104930.0,1.12734973]
[1750187680014,6e-05,104940.0,104930.0,1.28943589]
[1750187680479,0.00506,104940.0,104930.0,1.28943589]
[1750187680928,0.00506,104940.0,104930.0,1.38567765]
[1750187681173,0.00506,104940.0,104930.0,0.97638857]
[1750187681392,0.00506,104940.0,104930.0,1.38567765]
[1750187681855,0.00506,104940.0,104930.0,0.80782857]
[1750187682073,0.00506,104940.0,104930.0,1.29586973]
[1750187682747,0.00506,104940.0,104930.0,0.88658065]
[1750187682965,0.00506,104940.0,104930.0,1.12734973]
[1750187683189,0.00506,104940.0,104930.0,1.19958797]
[1750187683403,0.00506,104940.0,104930.0,0.91407967]
[1750187683618,0.00506,104940.0,104930.0,1.32336875]
[1750187684975,0.00506,104940.0,104930.0,1.15488875]
[1750187685201,0.00506,104940.0,104930.0,0.27228937]
[1750187685455,0.0431751,104940.0,104930.0,0.25084887]
[1750187685680,0.05270426,104940.0,104930.0,0.40645222]
[1750187685902,0.05270508,104940.0,104930.0,0.3969227]
[1750187686118,0.03364667,104940.0,104930.0,0.40645222]
[1750187686382,0.0241176,104940.0,104930.0,0.42695222]
[1750187686599,0.23376101,104940.0,104930.0,0.44909757]
[1750187686824,0.23376101,104940.0,104930.0,0.26183844]
[1750187687037,0.23376101,104940.0,104930.0,0.43956814]
[1750187687253,0.04317592,104940.0,104930.0,0.44909775]
[1750187687484,0.03364667,104940.0,104930.0,0.44909807]
[1750187687729,0.03464584,104940.0,104930.0,0.46959807]
[1750187687946,0.02964575,104940.0,104930.0,0.87888715]
[1750187688162,0.22523212,104940.0,104930.0,0.22227972]
[1750187688376,0.21570332,104940.0,104930.0,0.2318097]
[1750187688807,0.03464703,104940.0,104930.0,0.29887687]
[1750187689016,0.22523212,104940.0,104930.0,0.26183959]
[1750187689252,0.0251175,104940.0,104930.0,0.7106878]
[1750187689465,0.0251175,104940.0,104930.0,0.30139872]
[1750187689677,0.01558861,104940.0,104930.0,0.7106878]
[1750187689885,0.0251175,104940.0,104930.0,0.7106878]
[1750187690111,0.03464648,104940.0,104930.0,0.7106878]
[1750187690322,0.01558843,104940.0,104930.0,0.80683702]
[1750187690544,0.02511704,104940.0,104930.0,1.00266858]
[1750187690765,0.03464584,104940.0,104930.0,1.00266858]
[1750187690978,0.04417482,104940.0,104930.0,1.00266858]
[1750187691196,0.03464584,104940.0,104930.0,1.00266858]
[1750187691428,0.02511704,104940.0,104930.0,1.00266858]
[1750187691877,0.03464593,104940.0,104930.0,1.00266858]
[1750187692310,0.02511704,104940.0,104930.0,1.00266858]
[1750187692528,0.03464575,104940.0,104930.0,1.00266858]
[1750187692746,0.05370362,104940.0,104930.0,1.00266858]
[1750187692968,0.03464575,104940.0,104930.0,1.00266858]
[1750187693200,0.04351842,104940.0,104930.0,1.00266858]
[1750187693632,0.04352865,104940.0,104930.0,0.5933795]
[1750187693850,0.05305754,104940.0,104930.0,0.5933795]
[1750187694143,0.04352865,104940.0,104930.0,0.5933795]
[1750187694363,0.03399994,104940.0,104930.0,0.63062196]
[1750187694588,0.05305781,104940.0,104930.0,0.46242196]
[1750187694819,0.24364363,104940.0,104930.0,0.48734094]
[1750187695487,0.24364363,104940.0,104930.0,0.53411301]
[1750187695731,0.23411537,104940.0,104930.0,0.3567434]
[1750187695933,0.23411537,104940.0,104930.0,0.5245834]
[1750187696151,0.22458657,104940.0,104930.0,0.09655049]
[1750187696370,0.2150575,104940.0,104930.0,0.45487374]
[1750187696587,0.2150575,104940.0,104930.0,0.46440372]
[1750187696818,0.21505999,104940.0,104930.0,0.46440372]
[1750187697052,0.20553083,104940.0,104930.0,0.46440381]
[1750187697276,0.20553083,104940.0,104930.0,0.08702033]
[1750187697959,0.20553083,104940.0,104930.0,0.27762358]
[1750187698169,0.20553083,104940.0,104930.0,0.28715374]
[1750187698405,0.20553083,104940.0,104930.0,0.30654335]
[1750187698622,0.22458888,104940.0,104930.0,0.38464379]
[1750187699065,0.22458888,104940.0,104930.0,0.30654335]
[1750187699319,0.21505999,104940.0,104930.0,0.27795314]
[1750187699779,0.21507673,104940.0,104930.0,0.29701319]
[1750187700353,0.21507673,104940.0,104930.0,0.2874833]
[1750187700576,0.21507673,104940.0,104930.0,0.30654335]
[1750187700822,0.02449109,104940.0,104930.0,0.44402806]
[1750187701067,0.02449109,104940.0,104930.0,0.41618996]
[1750187701282,0.04354896,104940.0,104930.0,0.47225389]
[1750187701502,0.02449109,104940.0,104930.0,0.47225389]
[1750187701721,0.03401998,104940.0,104930.0,0.47225389]
[1750187701978,0.05307821,104940.0,104930.0,0.39412858]
[1750187702204,0.04355735,104940.0,104930.0,0.39412858]
[1750187702488,0.03402828,104940.0,104930.0,0.39412858]
[1750187702771,0.04355735,104940.0,104930.0,0.39412858]
[1750187703269,0.2436716,104940.0,104930.0,0.48779462]
[1750187703483,0.03402828,104940.0,104930.0,0.48779462]
[1750187703702,0.0340281,104940.0,104930.0,0.48779462]
[1750187703918,0.0340281,104940.0,104930.0,0.48772822]
[1750187704135,0.02449939,104940.0,104930.0,0.39406218]
[1750187704364,0.01497078,104940.0,104930.0,0.35688612]
[1750187705054,0.0244993,104940.0,104930.0,0.35688612]
[1750187705278,0.01497078,104940.0,104930.0,0.7661752]
[1750187705500,0.01497078,104940.0,104930.0,0.80626049]
[1750187705730,0.01497078,104940.0,104930.0,0.88117192]
[1750187705976,0.00606,104940.0,104930.0,0.37573362]
[1750187706201,0.02450497,104940.0,104930.0,0.30082219]
[1750187706426,0.01497636,104940.0,104930.0,0.35661498]
[1750187707367,0.00606,104940.0,104930.0,0.35661498]
[1750187707804,0.01558843,104940.0,104930.0,0.35661498]
[1750187708251,0.01558843,104940.0,104930.0,0.52397498]
[1750187708252,0.02511695,104940.0,104930.0,0.52397498]
[1750187708478,0.01558843,104940.0,104930.0,0.52397498]
[1750187708929,0.01558852,104940.0,104930.0,0.52397498]
[1750187710221,0.50586977,104960.0,104950.0,0.0206]
[1750187710222,0.0794,104960.0,104950.0,0.0206]
[1750187710441,0.01301478,104970.0,104960.0,0.60012999]
[1750187710649,0.01301478,104970.0,104960.0,0.45573707]
[1750187710860,0.01301478,104970.0,104960.0,0.44380272]
[1750187711068,0.02254058,104970.0,104960.0,0.33428102]
[1750187711289,0.06009478,104970.0,104960.0,0.33428284]
[1750187711501,0.01301478,104970.0,104960.0,0.27855646]
[1750187711714,0.01401478,104970.0,104960.0,0.6872374]
[1750187711920,0.01901478,104970.0,104960.0,0.92112838]
[1750187712338,0.01901478,104970.0,104960.0,0.93969826]
[1750187712571,0.01901478,104970.0,104960.0,1.08875482]
[1750187712784,0.01901478,104970.0,104960.0,1.1444812]
[1750187712993,0.01901478,104970.0,104960.0,1.19073661]
[1750187713206,0.01901478,104970.0,104960.0,0.68007388]
[1750187713424,0.01901478,104970.0,104960.0,1.21965065]
[1750187714714,0.05660544,104980.0,104960.0,1.16065456]
[1750187714903,0.26616824,104980.0,104970.0,0.19053062]
[1750187715130,0.22861359,104980.0,104970.0,0.21280059]
[1750187715348,0.02857559,104980.0,104970.0,0.23185337]
[1750187715568,0.08518112,104980.0,104970.0,0.23185337]
[1750187715781,0.27569359,104980.0,104970.0,0.21280059]
[1750187715990,0.25664335,104980.0,104970.0,0.21280059]
[1750187716207,0.27684335,104980.0,104970.0,0.27024149]
[1750187716449,0.00952507,104980.0,104970.0,0.28929372]
[1750187716670,0.03809776,104990.0,104980.0,0.200038]
[1750187716882,0.53919385,104990.0,104980.0,0.22230797]
[1750187717101,0.32483385,104990.0,104980.0,0.21278244]
[1750187717363,0.12481481,104990.0,104980.0,0.22230806]
[1750187717588,0.53915385,104990.0,104980.0,0.23183359]
[1750187717795,0.53911385,104990.0,104980.0,0.23183359]
[1750187718210,0.53911376,104990.0,104980.0,0.24683359]
[1750187718427,0.25229722,104990.0,104980.0,0.23408897]
[1750187718648,0.25229722,104990.0,104980.0,0.23408906]
[1750187718858,0.26182193,104990.0,104980.0,0.22456362]
[1750187719066,0.22859218,104990.0,104980.0,0.21503809]
[1750187719276,0.43326792,104990.0,104980.0,0.20551247]
[1750187719487,0.21906792,104990.0,104980.0,0.22456362]
[1750187719978,0.08135807,105000.0,104990.0,0.26156738]
[1750187720226,0.08135807,105000.0,104990.0,1.27301272]
[1750187720425,0.08135807,105000.0,104990.0,0.81273581]
[1750187720652,0.08135807,105000.0,104990.0,1.35458058]
[1750187720877,0.08135807,105000.0,104990.0,1.52214058]
[1750187721090,0.08135807,105000.0,104990.0,1.01147785]
[1750187721313,0.08135807,105000.0,104990.0,1.52526058]
[1750187721551,0.08135807,105000.0,104990.0,1.4975252]
[1750187721767,0.08135807,105000.0,104990.0,1.3338452]
[1750187721992,0.08135807,105000.0,104990.0,1.52926058]
[1750187722229,0.08135807,105000.0,104990.0,1.52930058]
[1750187722657,0.08135807,105000.0,104990.0,1.52630058]